{"text_format":"1","workbook":"xlsx","n_sheets":6,"sheets":["Cover","Basisoplysninger","Rettighedshavere","Nyopstart (§ 2,1, litra c)","Udlejning","Nødvendig information"],"not_rendered":{"charts":0,"images":0,"macros":1,"external_links":14,"defined_names":1224,"comments":0,"pivot_tables":0},"unopened":[],"bounds":{"document_bytes":16777216,"sheet_cells":100000,"rows_first":2000,"rows_last":500,"rows_between":2000,"halvings":0,"cell_chars":16384,"cell_head_chars":4096},"cells_cut":0,"cells_raw":0,"read":"whole","date_system":"1900"}

{"sheet":"Cover","index":0,"n_rows":34,"n_cols":15,"rows_kept":34,"cut":false,"hidden":false,"merged":[[33,1,33,2],[33,3,33,4],[10,1,10,5],[4,1,9,14],[31,1,31,2],[31,3,31,4],[32,1,32,2],[32,3,32,4],[21,1,23,14],[24,1,24,8],[24,9,24,10]]}
[]
[]
[null,null,null,null,null,null,null,null,null,null,null,null,null,null,{"$f":" \"Version \" & B33 & \".\" & D33","v":"Version 01.01"}]
[null,{"$f":"Basisoplysninger!E43","v":"Angiv virksomhedsnavn"}]
[null,"Oplysningsskema til Fødevarestyrelsen vedrørende minkvirksomheder uden egenproduktion af mink i 2020 og udlejningsvirksomheder samt minkvirksomheder med egenproduktion af mink i 2020, som vælger en erstatningsopgørelse efter ”model for principper for opgørelse af ekspropriationserstatning” jf. bekendtgørelsens § 4, stk. 2."]
[]
[]
[]
[]
[]
[null,{"$f":"TODAY()","v":"2025-10-15"}]
[]
[]
[]
[]
[]
[]
[]
[]
[]
[]
[null,"I henhold til § 21, stk. 4, i bekendtgørelse nr. 1216 af 10. oktober 2025 om fuldstændig erstatning og kompensation til minkvirksomheder og fuldstændig kompensation til følgeerhverv til minkvirksomheder som følge af det midlertidige forbud mod hold af mink skal minkvirksomheder og udlejningsvirksomheder, der ansøger om erstatning og kompensation efter anmodning fra den kompetente myndighed indsende en erklæring fra en godkendt revisor om nærmere bestemte forhold. \n\nNærværende oplysningsskema udgør ”Oplysningsskema til Fødevarestyrelsen vedrørende minkvirksomheder uden egenproduktion af mink i 2020 og udlejningsvirksomheder samt minkvirksomheder med egenproduktion af mink i 2020, som vælger en erstatningsopgørelse efter ”model for principper for opgørelse af ekspropriationserstatning” jf. bekendtgørelsens § 4, stk. 2.” Skemaet udfyldes efter anmodning fra Fødevarestyrelsen af minkvirksomheder uden egenproduktion af mink i 2020 og udlejningsvirksomheder, samt af minkvirksomheder med egenproduktion af mink i 2020, som vælger en erstatningsopgørelse baseret på en individuel vurdering af virksomheden efter principper, der gælder for opgørelse af ekspropriationserstatning, jf. bekendtgørelsens § 4, stk. 2. "]
[]
[]
[null,"Revisorinstruks godkendt af Fødevarestyrelsen findes på link.",null,null,null,null,null,null,null,"Revisorinstruks"]
[]
[]
[null,null,null,null,null,null,null,null,null,null,null,null,null,null,"Personligt & fortroligt"]
[]
[]
[]
[null,"Version",null,"Subversion"]
[null,"01",null,"01"]
[null,"2025-10-08T14:43:19.400",null,"2025-10-08T14:43:19.400"]

{"sheet":"Basisoplysninger","index":1,"n_rows":106,"n_cols":9,"rows_kept":106,"cut":false,"hidden":false,"merged":[[78,6,78,7],[54,8,57,8],[84,1,84,2],[81,1,81,2],[79,1,79,2],[97,8,103,8],[93,6,93,7],[97,1,103,7],[91,6,91,7],[92,1,92,3],[92,6,92,7],[93,1,93,3],[89,0,89,7],[86,1,87,4],[86,6,86,7],[79,6,79,7],[81,6,81,7],[0,1,0,7],[41,2,41,4],[47,6,47,7],[53,6,53,7],[43,6,43,7],[44,6,44,7],[39,6,39,7]]}
[]
[]
[]
[]
[]
[]
[]
[]
[]
[]
[]
[]
[]
[]
[]
[]
[]
[]
[]
[]
[]
[]
[]
[]
[]
[]
[]
[]
[]
[]
[]
[]
[]
[]
[]
[]
[]
["1) Generelle virksomhedsoplysninger (§ 2)",null,null,null,null,null,null,null,"Vejledning til indtastning"]
[]
[null,null,null,null,null,null,"Eventuelle kommentarer til indtastningen"]
[null,"Angiv datoen for udfyldelse af dette skema",null,null,"Angiv dato",null,null,null,"Angiv datoen for udfyldelsen af dette skema i formatet dd-mm-åååå."]
[null,"Generel virksomhedsbeskrivelse",null,null,null,null,null,null,"Beskriv virksomheden i sin helhed, herunder dens primære aktiviteter og indtægtskilder.\n\nBeskriv også virksomhedens livsforløb i korte træk - hvordan har udviklingen været de seneste år i forhold til omsætning, overskud, kapacitet, antal medarbejdere og væsentlige investeringer.\n\nEr ejerskabet skiftet de senere år, så beskriv dette, herunder hvilken betydning det har haft."]
[null,"Virksomhedsnavn\n",null,null,"Angiv virksomhedsnavn",null,null,null,"Her angives virksomhedens navn i følge CVR-registret."]
[null,"Opstartsår for minkvirksomheden",null,null,"Angiv årstal",null,null,null,"Dvs. første regnskabsår, hvor den minkrelaterede virksomhed har haft aktivitet, uanset om virksomheden er omdannet til selskab undervejs eller fusioneret med en anden virksomhed. Det indebærer, at såfremt virksomheden eksempelvis er startet i år 2000 og omdannet til et selskab i 2012, så angives år 2000 som startåret."]
[null,"Er regnskaber for 2018, 2019 og 2020 vedlagt?",null,null,"Vælg ja eller nej",null,null,null,"Såfremt regnskaber for 2018, 2019 og 2020 er vedlagt vælges \"Ja\". Såfremt alle tre regnskaber ikke er vedlagt, skal det beskrives i kommentarfeltet, hvorfor de ikke er vedlagt (eksempelvis fordi de allerede er indsendt til Minksekretariatet, eller at minkvirksomheden ikke var i drift i 2018)."]
[null,"Udarbejdes der årsregnskab efter årsregnskabsloven?",null,null,"Vælg ja eller nej",null,null,null,"Når der svares ja, så anvendes dette typisk som grundlag i besvarelsen. Udarbejdes ikke årsregnskab, skal en del af de krævede oplysninger udledes af bogføringen og eventuelt bearbejdes nærmere."]
[null,"Hvis nej - angiv virksomhedens regnskabsgrundlag",null,null,null,null,null,null,"Såfremt der ikke udarbejdes årsregnskab efter årsregnskabsloven, vil der normalt foreligge et andet driftsøkonomisk regnskab eller en udskrift fra bogføringen."]
[null,"Er det anvendte regnskab forsynet med en revisorerklæring?",null,null,null,null,null,null,"Her anføres, om det anvendte regnskab indeholder en revisorerklæring om revision, udvidet gennemgang, review, assistance eller ingen erklæring."]
[null,"Regnskabsår 2020",null,null,"Vælg fra liste"]
[null,"Regnskabsår 2019",null,null,"Vælg fra liste"]
[null,"Regnskabsår 2018",null,null,"Vælg fra liste"]
[null,"Angiv datoen for regnskabsårets afslutning",null,null,"Angiv dato",null,null,null,"Angiv datoen for afslutningen af det seneste årsregnskab i formatet dd-mm-åååå."]
[null,"Selskabsform",null,null,"Vælg selskabsform"]
[null,"CVR-nr.",null,null,"Angiv CVR-nr."]
[null,"CHR-nr. / Matrikel-nr.","Angiv CHR-nr.","Angiv Matrikel-nr.","Angiv om farm er ejet eller lejet",null,"Hvis lejet angiv CVR-nr. for udlejer","Angiv adresse for den enkelte farm","Angiv CHR-nr., matrikel-nr. og adresse på de enkelte farme, som er omfattet af det oplyste CVR-nr. Der skal kun indtastes ét matrikel-nr. pr. linje. Såfremt det enkelte CHR-nr. omfatter flere matrikel-nr. indtastes flere linjer, dvs. CHR-nr. indtastes flere gange. Angiv derudover om farmen er ejet eller lejet, og såfremt den er lejet, angiv da udlejers CVR-nr. "]
[null,"CHR-nr. / Matrikel-nr.","Angiv CHR-nr.","Angiv Matrikel-nr.","Angiv om farm er ejet eller lejet",null,"Hvis lejet angiv CVR-nr. for udlejer","Angiv adresse for den enkelte farm"]
[null,"CHR-nr. / Matrikel-nr.","Angiv CHR-nr.","Angiv Matrikel-nr.","Angiv om farm er ejet eller lejet",null,"Hvis lejet angiv CVR-nr. for udlejer","Angiv adresse for den enkelte farm"]
[null,"CHR-nr. / Matrikel-nr.","Angiv CHR-nr.","Angiv Matrikel-nr.","Angiv om farm er ejet eller lejet",null,"Hvis lejet angiv CVR-nr. for udlejer","Angiv adresse for den enkelte farm"]
[null,"CHR-nr. / Matrikel-nr.","Angiv CHR-nr.","Angiv Matrikel-nr.","Angiv om farm er ejet eller lejet",null,"Hvis lejet angiv CVR-nr. for udlejer","Angiv adresse for den enkelte farm"]
[null,"CHR-nr. / Matrikel-nr.","Angiv CHR-nr.","Angiv Matrikel-nr.","Angiv om farm er ejet eller lejet",null,"Hvis lejet angiv CVR-nr. for udlejer","Angiv adresse for den enkelte farm"]
[null,"CHR-nr. / Matrikel-nr.","Angiv CHR-nr.","Angiv Matrikel-nr.","Angiv om farm er ejet eller lejet",null,"Hvis lejet angiv CVR-nr. for udlejer","Angiv adresse for den enkelte farm"]
[null,"CHR-nr. / Matrikel-nr.","Angiv CHR-nr.","Angiv Matrikel-nr.","Angiv om farm er ejet eller lejet",null,"Hvis lejet angiv CVR-nr. for udlejer","Angiv adresse for den enkelte farm"]
[null,"CHR-nr. / Matrikel-nr.","Angiv CHR-nr.","Angiv Matrikel-nr.","Angiv om farm er ejet eller lejet",null,"Hvis lejet angiv CVR-nr. for udlejer","Angiv adresse for den enkelte farm"]
[null,"CHR-nr. / Matrikel-nr.","Angiv CHR-nr.","Angiv Matrikel-nr.","Angiv om farm er ejet eller lejet",null,"Hvis lejet angiv CVR-nr. for udlejer","Angiv adresse for den enkelte farm"]
[null,"CHR-nr. / Matrikel-nr.","Angiv CHR-nr.","Angiv Matrikel-nr.","Angiv om farm er ejet eller lejet",null,"Hvis lejet angiv CVR-nr. for udlejer","Angiv adresse for den enkelte farm"]
[null,"CHR-nr. / Matrikel-nr.","Angiv CHR-nr.","Angiv Matrikel-nr.","Angiv om farm er ejet eller lejet",null,"Hvis lejet angiv CVR-nr. for udlejer","Angiv adresse for den enkelte farm"]
[null,"CHR-nr. / Matrikel-nr.","Angiv CHR-nr.","Angiv Matrikel-nr.","Angiv om farm er ejet eller lejet",null,"Hvis lejet angiv CVR-nr. for udlejer","Angiv adresse for den enkelte farm"]
[null,"CHR-nr. / Matrikel-nr.","Angiv CHR-nr.","Angiv Matrikel-nr.","Angiv om farm er ejet eller lejet",null,"Hvis lejet angiv CVR-nr. for udlejer","Angiv adresse for den enkelte farm"]
[null,"CHR-nr. / Matrikel-nr.","Angiv CHR-nr.","Angiv Matrikel-nr.","Angiv om farm er ejet eller lejet",null,"Hvis lejet angiv CVR-nr. for udlejer","Angiv adresse for den enkelte farm"]
[null,"CHR-nr. / Matrikel-nr.","Angiv CHR-nr.","Angiv Matrikel-nr.","Angiv om farm er ejet eller lejet",null,"Hvis lejet angiv CVR-nr. for udlejer","Angiv adresse for den enkelte farm"]
[null,"CHR-nr. / Matrikel-nr.","Angiv CHR-nr.","Angiv Matrikel-nr.","Angiv om farm er ejet eller lejet",null,"Hvis lejet angiv CVR-nr. for udlejer","Angiv adresse for den enkelte farm"]
[null,"CHR-nr. / Matrikel-nr.","Angiv CHR-nr.","Angiv Matrikel-nr.","Angiv om farm er ejet eller lejet",null,"Hvis lejet angiv CVR-nr. for udlejer","Angiv adresse for den enkelte farm"]
[null,"CHR-nr. / Matrikel-nr.","Angiv CHR-nr.","Angiv Matrikel-nr.","Angiv om farm er ejet eller lejet",null,"Hvis lejet angiv CVR-nr. for udlejer","Angiv adresse for den enkelte farm"]
[null,"CHR-nr. / Matrikel-nr.","Angiv CHR-nr.","Angiv Matrikel-nr.","Angiv om farm er ejet eller lejet",null,"Hvis lejet angiv CVR-nr. for udlejer","Angiv adresse for den enkelte farm"]
[]
[null,"Var der en gældende miljøtilladelse til minkproduktion den 4. november 2020?",null,null,"Vælg ja eller nej",null,null,null,"Dokumentation for miljøtilladelse og seneste miljøtilsynsrapport forud for 4. november 2020 skal vedlægges."]
[]
["2) Aktiver og rettighedshavere",null,null,null,null,null,null,null,"Vejledning til indtastning"]
[null,null,null,null,null,null,"Eventuelle kommentarer til indtastningen"]
[null,"Er det planlagt at udtage aktiver?",null,null,"Vælg ja eller nej",null,null,null,"Såfremt det overvejes at udtage aktiver, skal det beskrives detaljeret i kommentarfeltet, hvilke aktiver, der overvejes udtaget."]
[]
[null,"Er der gjort brug af aktiver, som er lejede eller operationelt leasede, finansielt leasede aktiver, hvor den fulde ejendomsret ikke overtages, aktiver med ejendomsforbehold, hvor ejendomsforbeholdet ikke overtages, eller aktiver som ikke er 100% ejede af minkvirksomheden?",null,null,"Vælg ja eller nej",null,null,null,"Såfremt der er valgt \"Ja\", skal det beskrives i kommentarfeltet, hvilke aktiver det drejer sig om."]
[]
[]
[null,"Her angives, hvorvidt minkvirksomheden har rettighedshavere med rettigheder over minkspecifikke aktiver eller rettigheder i minkvirksomheden",null,null,"Vælg ja eller nej",null,null,null,"I det omfang, der er rettighedshavere, som har pant eller andre rettigheder i virksomheden eller i de minkspecifikke aktiver, skal fanen \"Rettighedshavere\" anvendes til at oplyse om, hvilke rettigheder tredjemand har til aktiverne. Hvis minkvirksomheden ingen rettighedshavere har, vælges \"Nej\", og fanen \"Rettighedshavere\" skal derfor ikke udfyldes."]
[]
[null,{"$f":" IF( E85 <> \"Nej\", \"Derefter bedes du gå til fanen 'Rettighedshavere', hvor du for hvert aktiv, hvor det er relevant, skal specificere eventuelle rettighedshavere inkl. prioritetsstilling.\", \"Idet minkvirksomheden ingen rettighedshavere har, skal fanen 'Rettighedshavere' ikke udfyldes.\" )","v":"Derefter bedes du gå til fanen 'Rettighedshavere', hvor du for hvert aktiv, hvor det er relevant, skal specificere eventuelle rettighedshavere inkl. prioritetsstilling."},null,null,null,null,{"$f":" IF( E85 <> \"Nej\", \"Gå til fanen 'Rettighedshavere'\", \"\" )","v":"Gå til fanen 'Rettighedshavere'"}]
[]
[]
["3) Oplysninger vedrørende indtjening fra erstatningsberettiget virksomhed",null,null,null,null,null,null,null,"Vejledning til indtastning"]
[]
[null,"Generel indtjening",null,null,"Erstatningsberettiget minkvirksomhed",null,"Eventuelle kommentarer til indtastningen"]
[null,"Indtjening fra erstatningsberettiget minkvirksomhed i perioden fra 4. november 2020 frem til tidspunktet for indgivelse af indtastningsskemaet",null,null,null,null,null,null,"Indtjening fra erstatningsberettiget virksomhedsaktivitet efter 4. november 2020 skal modregnes. Salg af virksomhedens varelager af minkskind og skind fra mink, der er pelset fra den 1. januar 2021, skal ikke angives. Der skal vedlægges dokumentation for indtjeningen."]
[null,"Angiv den opgørelsesdato, som opgørelsen af indtjening fra erstatningsberettiget virksomhed efter den 4. november 2020 er lavet",null,null,"Angiv dato",null,null,null,"Angiv datoen i formatet dd-mm-åååå."]
[]
["4) Øvrige kommentarer",null,null,null,null,null,null,null,"Vejledning til indtastning"]
[]
[null,null,null,null,null,null,null,null,"Her kan anføres de eventuelle ekstra oplysninger, som minkvirksomheden finder relevante - og som ikke kommer til udtryk ved udfyldelse af skemaet. "]
[]
[]
[]
[]
[]
[]
[]
["Ark slut"]

{"sheet":"Rettighedshavere","index":2,"n_rows":225,"n_cols":12,"rows_kept":225,"cut":false,"hidden":false,"merged":[]}
[]
[null,"Oversigt over rettighedshavere"]
[]
[]
[]
[]
[]
[]
[]
[]
[]
[]
[]
[]
[null,null,"Bemærk, at den fulde oversigt over rettighedshavere vises eller skjules ved at trykke på \"+\" eller \"-\" til venstre for første kolonne."]
[]
[null,null,"A) Rettighedshavere med pant i fast ejendom"]
[null,null,"Rettighed ","Rettighedshaver","Rettighedshavers kontaktoplysninger: CVR-nr.","Rettighedshavers kontaktoplysninger: Adresse","Rettighedshavers kontaktoplysninger: E-mail","Rettighedshavers kontaktoplysninger: Tlf. nr. ","Rettighedshavers kontaktoplysninger: CPR-nr. (indastes uden bindestreg)","Matrikel-nr.","Prioritet #","Var rettigheden gældende pr. 4. november 2020 eller blev den stiftet senere?"]
[null,null,"Rettighed 1"]
[null,null,"Rettighed 2"]
[null,null,"Rettighed 3"]
[null,null,"Rettighed 4"]
[null,null,"Rettighed 5"]
[null,null,"Rettighed 6"]
[null,null,"Rettighed 7"]
[null,null,"Rettighed 8"]
[null,null,"Rettighed 9"]
[null,null,"Rettighed 10"]
[null,null,"Rettighed 11"]
[null,null,"Rettighed 12"]
[null,null,"Rettighed 13"]
[null,null,"Rettighed 14"]
[null,null,"Rettighed 15"]
[null,null,"Rettighed 16"]
[null,null,"Rettighed 17"]
[null,null,"Rettighed 18"]
[null,null,"Rettighed 19"]
[null,null,"Rettighed 20"]
[null,null,"Rettighed 21"]
[null,null,"Rettighed 22"]
[null,null,"Rettighed 23"]
[null,null,"Rettighed 24"]
[null,null,"Rettighed 25"]
[null,null,"Rettighed 26"]
[null,null,"Rettighed 27"]
[null,null,"Rettighed 28"]
[null,null,"Rettighed 29"]
[null,null,"Rettighed 30"]
[null,null,"Rettighed 31"]
[null,null,"Rettighed 32"]
[null,null,"Rettighed 33"]
[null,null,"Rettighed 34"]
[null,null,"Rettighed 35"]
[null,null,"Rettighed 36"]
[null,null,"Rettighed 37"]
[null,null,"Rettighed 38"]
[null,null,"Rettighed 39"]
[null,null,"Rettighed 40"]
[null,null,"Rettighed 41"]
[null,null,"Rettighed 42"]
[null,null,"Rettighed 43"]
[null,null,"Rettighed 44"]
[null,null,"Rettighed 45"]
[null,null,"Rettighed 46"]
[null,null,"Rettighed 47"]
[null,null,"Rettighed 48"]
[null,null,"Rettighed 49"]
[null,null,"Rettighed 50"]
[null,null,"Rettighed 51"]
[null,null,"Rettighed 52"]
[null,null,"Rettighed 53"]
[null,null,"Rettighed 54"]
[null,null,"Rettighed 55"]
[null,null,"Rettighed 56"]
[null,null,"Rettighed 57"]
[null,null,"Rettighed 58"]
[null,null,"Rettighed 59"]
[null,null,"Rettighed 60"]
[null,null,"Rettighed 61"]
[null,null,"Rettighed 62"]
[null,null,"Rettighed 63"]
[null,null,"Rettighed 64"]
[null,null,"Rettighed 65"]
[null,null,"Rettighed 66"]
[null,null,"Rettighed 67"]
[null,null,"Rettighed 68"]
[null,null,"Rettighed 69"]
[null,null,"Rettighed 70"]
[null,null,"Rettighed 71"]
[null,null,"Rettighed 72"]
[null,null,"Rettighed 73"]
[null,null,"Rettighed 74"]
[null,null,"Rettighed 75"]
[null,null,"Rettighed 76"]
[null,null,"Rettighed 77"]
[null,null,"Rettighed 78"]
[null,null,"Rettighed 79"]
[null,null,"Rettighed 80"]
[null,null,"Rettighed 81"]
[null,null,"Rettighed 82"]
[null,null,"Rettighed 83"]
[null,null,"Rettighed 84"]
[null,null,"Rettighed 85"]
[null,null,"Rettighed 86"]
[null,null,"Rettighed 87"]
[null,null,"Rettighed 88"]
[null,null,"Rettighed 89"]
[null,null,"Rettighed 90"]
[null,null,"Rettighed 91"]
[null,null,"Rettighed 92"]
[null,null,"Rettighed 93"]
[null,null,"Rettighed 94"]
[null,null,"Rettighed 95"]
[null,null,"Rettighed 96"]
[null,null,"Rettighed 97"]
[null,null,"Rettighed 98"]
[null,null,"Rettighed 99"]
[null,null,"Rettighed 100"]
[]
[]
[null,null,"B) Andre rettighedshavere"]
[null,null,"Rettighed ","Rettighedshaver","Rettighedshavers kontaktoplysninger: CVR-nr.","Rettighedshavers kontaktoplysninger: Adresse","Rettighedshavers kontaktoplysninger: E-mail","Rettighedshavers kontaktoplysninger: Tlf.nr. ","Rettighedshavers kontaktoplysninger: CPR-nr. (indastes uden bindestreg)","Rettighedstype, f.eks. virksomhedspant, brugsret, lejeret m.v.","Aktiver, som rettigheden dækker over","Var rettigheden gældende pr. 4. november 2020 eller blev den stiftet senere?"]
[null,null,"Rettighed 1"]
[null,null,"Rettighed 2"]
[null,null,"Rettighed 3"]
[null,null,"Rettighed 4"]
[null,null,"Rettighed 5"]
[null,null,"Rettighed 6"]
[null,null,"Rettighed 7"]
[null,null,"Rettighed 8"]
[null,null,"Rettighed 9"]
[null,null,"Rettighed 10"]
[null,null,"Rettighed 11"]
[null,null,"Rettighed 12"]
[null,null,"Rettighed 13"]
[null,null,"Rettighed 14"]
[null,null,"Rettighed 15"]
[null,null,"Rettighed 16"]
[null,null,"Rettighed 17"]
[null,null,"Rettighed 18"]
[null,null,"Rettighed 19"]
[null,null,"Rettighed 20"]
[null,null,"Rettighed 21"]
[null,null,"Rettighed 22"]
[null,null,"Rettighed 23"]
[null,null,"Rettighed 24"]
[null,null,"Rettighed 25"]
[null,null,"Rettighed 26"]
[null,null,"Rettighed 27"]
[null,null,"Rettighed 28"]
[null,null,"Rettighed 29"]
[null,null,"Rettighed 30"]
[null,null,"Rettighed 31"]
[null,null,"Rettighed 32"]
[null,null,"Rettighed 33"]
[null,null,"Rettighed 34"]
[null,null,"Rettighed 35"]
[null,null,"Rettighed 36"]
[null,null,"Rettighed 37"]
[null,null,"Rettighed 38"]
[null,null,"Rettighed 39"]
[null,null,"Rettighed 40"]
[null,null,"Rettighed 41"]
[null,null,"Rettighed 42"]
[null,null,"Rettighed 43"]
[null,null,"Rettighed 44"]
[null,null,"Rettighed 45"]
[null,null,"Rettighed 46"]
[null,null,"Rettighed 47"]
[null,null,"Rettighed 48"]
[null,null,"Rettighed 49"]
[null,null,"Rettighed 50"]
[null,null,"Rettighed 51"]
[null,null,"Rettighed 52"]
[null,null,"Rettighed 53"]
[null,null,"Rettighed 54"]
[null,null,"Rettighed 55"]
[null,null,"Rettighed 56"]
[null,null,"Rettighed 57"]
[null,null,"Rettighed 58"]
[null,null,"Rettighed 59"]
[null,null,"Rettighed 60"]
[null,null,"Rettighed 61"]
[null,null,"Rettighed 62"]
[null,null,"Rettighed 63"]
[null,null,"Rettighed 64"]
[null,null,"Rettighed 65"]
[null,null,"Rettighed 66"]
[null,null,"Rettighed 67"]
[null,null,"Rettighed 68"]
[null,null,"Rettighed 69"]
[null,null,"Rettighed 70"]
[null,null,"Rettighed 71"]
[null,null,"Rettighed 72"]
[null,null,"Rettighed 73"]
[null,null,"Rettighed 74"]
[null,null,"Rettighed 75"]
[null,null,"Rettighed 76"]
[null,null,"Rettighed 77"]
[null,null,"Rettighed 78"]
[null,null,"Rettighed 79"]
[null,null,"Rettighed 80"]
[null,null,"Rettighed 81"]
[null,null,"Rettighed 82"]
[null,null,"Rettighed 83"]
[null,null,"Rettighed 84"]
[null,null,"Rettighed 85"]
[null,null,"Rettighed 86"]
[null,null,"Rettighed 87"]
[null,null,"Rettighed 88"]
[null,null,"Rettighed 89"]
[null,null,"Rettighed 90"]
[null,null,"Rettighed 91"]
[null,null,"Rettighed 92"]
[null,null,"Rettighed 93"]
[null,null,"Rettighed 94"]
[null,null,"Rettighed 95"]
[null,null,"Rettighed 96"]
[null,null,"Rettighed 97"]
[null,null,"Rettighed 98"]
[null,null,"Rettighed 99"]
[null,null,"Rettighed 100"]
[]
[]
[null,"Ark slut"]

{"sheet":"Nyopstart (§ 2,1, litra c)","index":3,"n_rows":37,"n_cols":3,"rows_kept":37,"cut":false,"hidden":false,"merged":[[8,1,14,7]]}
[]
[]
[]
[]
[]
[]
[]
[null,"1) Generel virksomhedsbeskrivelse herunder færdiggørelsesgrad af aktiviteter, forventet opstartstidspunkt og forventet antal avlstæver."]
[]
[]
[]
[]
[]
[]
[]
[]
[]
[null,"Ark slut"]
[]
[null,"januar",{"$f":"\"Ultimo \"&B20","v":"Ultimo januar"}]
[null,"februar",{"$f":"\"Ultimo \"&B21","v":"Ultimo februar"}]
[null,"marts","Ultimo marts"]
[null,"april","Ultimo april"]
[null,"maj","Ultimo maj"]
[null,"juni","Ultimo juni"]
[null,"juli","Ultimo juli"]
[null,"august","Ultimo august"]
[null,"september","Ultimo september"]
[null,"oktober","Ultimo oktober"]
[null,"november","Ultimo november"]
[null,"december","Ultimo december"]
[null,null,"Andet"]
[]
[null,null,"Salg af halm"]
[null,null,"Udlejning af bur- og staldkapacitet"]
[null,null,"Pasningsaftaler"]
[null,null,"Andet (specificer i kommentarfelt)"]

{"sheet":"Udlejning","index":4,"n_rows":50,"n_cols":9,"rows_kept":50,"cut":false,"hidden":false,"merged":[[21,1,27,8]]}
[]
[]
[]
[]
[]
[]
[null,"1) Identifikation af lejere"]
[null,"Lejer","Lejers navn","Lejers CVR-nr.","Lejers adresse","Lejers e-mail","Lejers tlf.nr. ","Lejers CPR-nr. (indastes uden bindestreg)","Aktiv(er) som lejes af denne lejer"]
[null,"Lejer 1"]
[null,"Lejer 2"]
[null,"Lejer 3"]
[null,"Lejer 4"]
[null,"Lejer 5"]
[null,"Lejer 6"]
[null,"Lejer 7"]
[null,"Lejer 8"]
[null,"Lejer 9"]
[null,"Lejer 10"]
[]
[]
[null,"2) Generel beskrivelse af de identificerede udlejningsaktiviteter"]
[]
[]
[]
[]
[]
[]
[]
[]
[]
[null,"Ark slut"]
[]
[null,"januar",{"$f":"\"Ultimo \"&B33","v":"Ultimo januar"}]
[null,"februar",{"$f":"\"Ultimo \"&B34","v":"Ultimo februar"}]
[null,"marts","Ultimo marts"]
[null,"april","Ultimo april"]
[null,"maj","Ultimo maj"]
[null,"juni","Ultimo juni"]
[null,"juli","Ultimo juli"]
[null,"august","Ultimo august"]
[null,"september","Ultimo september"]
[null,"oktober","Ultimo oktober"]
[null,"november","Ultimo november"]
[null,"december","Ultimo december"]
[null,null,"Andet"]
[]
[null,null,"Salg af halm"]
[null,null,"Udlejning af bur- og staldkapacitet"]
[null,null,"Pasningsaftaler"]
[null,null,"Andet (specificer i kommentarfelt)"]

{"sheet":"Nødvendig information","index":5,"n_rows":15,"n_cols":3,"rows_kept":15,"cut":false,"hidden":false,"merged":[]}
[]
[null,"Dokumentationskrav"]
[]
[null,{"$f":"ROW(4:4)-3&\")\"","v":"1)"},"Kopi af gældende miljøgodkendelser og -tilladelser pr. 4. november 2020 samt seneste miljøtilsynsrapport forud for 4. november 2020."]
[null,{"$f":"ROW(5:5)-3&\")\"","v":"2)"},"Årsregnskaber for årene 2018-2020 (enten efter årsregnskabsloven eller efter andre principper)."]
[null,{"$f":"ROW(6:6)-3&\")\"","v":"3)"},"Revisionsprotokoller for årene 2018-2020, såfremt sådanne er udarbejdet. "]
[null,{"$f":"ROW(7:7)-3&\")\"","v":"4)"},"Skatteregnskaber for årene 2018-2020 (og eventuelle afstemninger mellem årsregnskab og skattepligtig indkomst)."]
[null,{"$f":"ROW(8:8)-3&\")\"","v":"5)"},"Eksisterende strategi-/forretningsplan (udarbejdet inden 4. november 2020) (hvis en sådan foreligger). Alternativt kortfattet beskrivelse af forventninger til fremtiden pr. 4. november 2020 (såfremt den danske minkbesætning ikke var nedslået i 2020). "]
[null,{"$f":"ROW(9:9)-3&\")\"","v":"6)"},"Gældende leje- og leasingaftaler og betalinger pr. 4 november 2020 i det omfang, at minkvirksomheden ikke erhverver den fulde ejendomsret til aktiverne. Hvis leasingydelsen fremadrettet er væsentlig anderledes end i 2019, medsendes dokumentation for beregning af den normaliserede periodiserede leasingydelse for det pågældende aktiv."]
[null,{"$f":"ROW(10:10)-3&\")\"","v":"7)"},"Til brug for dokumentation af rettighederne og rettighedshaverne medsendes kopi af tingbogens oplysninger og dokumentation for tredjemands brugsrettigheder samt dokumentation for andre utinglyste rettigheder."]
[null,{"$f":"ROW(11:11)-3&\")\"","v":"8)"},"Beskrivelse af særlige aktiver under opførelse, udviklingsprojekter eller andre immaterielle aktiver."]
[null,{"$f":"ROW(12:12)-3&\")\"","v":"9)"},"Evt. dokumentation for indtjening fra erstatningsberettiget minkvirksomhed i perioden efter 4. november 2020 frem til opgørelsesdatoen."]
[null,{"$f":"ROW(13:13)-3&\")\"","v":"10)"},"Udlejningsvirksomheder: Lejekontrakt samt dokumentation for betalt leje for seneste udlejningsår."]
[]
[null,"Ark slut"]